[Event "Late-Titled-Tuesday-Blitz-May-07-2024"]
[Site "Chess.com"]
[Date "2024.05.07"]
[Round "7"]
[White "WilsonPalencia21"]
[Black "ameetghasi100"]
[Result "1-0"]
[WhiteElo "2574"]
[BlackElo "2788"]
[TimeControl "180+1"]
[EndTime "15:16:15 PDT"]
[Termination "WilsonPalencia21 won by resignation"]

1. d4 {[%clk 0:02:52.4]} 1... g6 {[%clk 0:03:00.9]} 2. c4 {[%clk 0:02:52.1]}
2... d6 {[%clk 0:03:01.7]} 3. Nf3 {[%clk 0:02:52.2]} 3... Nf6 {[%clk 0:03:02.6]}
4. Nc3 {[%clk 0:02:50.9]} 4... Bg7 {[%clk 0:03:03.2]} 5. e4 {[%clk 0:02:51.4]}
5... O-O {[%clk 0:03:03.9]} 6. Be2 {[%clk 0:02:52]} 6... Bg4 {[%clk 0:03:04.3]}
7. O-O {[%clk 0:02:52.5]} 7... a6 {[%clk 0:03:03.1]} 8. Be3 {[%clk 0:02:52.7]}
8... Nfd7 {[%clk 0:03:02.8]} 9. Ne1 {[%clk 0:02:52.5]} 9... Bxe2 {[%clk
0:03:02.9]} 10. Nxe2 {[%clk 0:02:52.9]} 10... c5 {[%clk 0:03:03.8]} 11. Qd2
{[%clk 0:02:51.8]} 11... Nc6 {[%clk 0:03:03.7]} 12. d5 {[%clk 0:02:52]} 12...
Nce5 {[%clk 0:03:04]} 13. Rc1 {[%clk 0:02:51.7]} 13... b5 {[%clk 0:03:04.4]} 14.
b3 {[%clk 0:02:45.6]} 14... bxc4 {[%clk 0:03:04.7]} 15. bxc4 {[%clk 0:02:46.5]}
15... Nb6 {[%clk 0:03:05.4]} 16. f4 {[%clk 0:01:49.9]} 16... Nexc4 {[%clk
0:03:05.1]} 17. Qd3 {[%clk 0:01:49.1]} 17... Nxe3 {[%clk 0:03:00.5]} 18. Qxe3
{[%clk 0:01:49.6]} 18... Rb8 {[%clk 0:03:01.1]} 19. Nf3 {[%clk 0:01:49.7]} 19...
Qd7 {[%clk 0:03:01.3]} 20. Rfd1 {[%clk 0:01:48.6]} 20... Qa4 {[%clk 0:02:59.7]}
21. e5 {[%clk 0:01:45.3]} 21... Nc4 {[%clk 0:02:55.3]} 22. Qe4 {[%clk
0:01:38.8]} 22... Rb4 {[%clk 0:02:33.6]} 23. Nc3 {[%clk 0:01:34.7]} 23... Qa3
{[%clk 0:02:28.2]} 24. exd6 {[%clk 0:01:30]} 24... exd6 {[%clk 0:02:29.1]} 25.
Nb1 {[%clk 0:01:22.8]} 25... Qxa2 {[%clk 0:02:23.8]} 26. Nc3 {[%clk 0:01:03.3]}
26... Bxc3 {[%clk 0:02:23.1]} 27. Rxc3 {[%clk 0:01:03.3]} 27... Nb2 {[%clk
0:02:23.5]} 28. Qc2 {[%clk 0:01:02.4]} 28... Qa5 {[%clk 0:02:11.4]} 29. Re1
{[%clk 0:00:56.7]} 29... Nc4 {[%clk 0:01:54.3]} 30. f5 {[%clk 0:00:53.2]} 30...
Qb5 {[%clk 0:01:24.4]} 31. f6 {[%clk 0:00:48.6]} 31... Rb2 {[%clk 0:01:23.5]}
32. Qc1 {[%clk 0:00:47.4]} 32... Nd2 {[%clk 0:00:29.6]} 33. Nxd2 {[%clk
0:00:38.5]} 33... Rb8 {[%clk 0:00:27.1]} 34. Nf3 {[%clk 0:00:30.5]} 34... Rb1
{[%clk 0:00:26.5]} 35. Qh6 {[%clk 0:00:25.4]} 1-0

[Event "Late-Titled-Tuesday-Blitz-May-07-2024"]
[Site "Chess.com"]
[Date "2024.05.07"]
[Round "7"]
[White "Tibmat"]
[Black "JG-17"]
[Result "1-0"]
[WhiteElo "2683"]
[BlackElo "2559"]
[TimeControl "180+1"]
[EndTime "15:16:17 PDT"]
[Termination "Tibmat won by resignation"]

1. c4 {[%clk 0:03:00.9]} 1... Nf6 {[%clk 0:02:59.5]} 2. g3 {[%clk 0:03:00.6]}
2... g6 {[%clk 0:02:59]} 3. Bg2 {[%clk 0:03:01.2]} 3... Bg7 {[%clk 0:02:59.5]}
4. Nc3 {[%clk 0:03:02.1]} 4... O-O {[%clk 0:02:59.2]} 5. e4 {[%clk 0:03:03]}
5... d6 {[%clk 0:02:59.2]} 6. Nge2 {[%clk 0:03:03.6]} 6... e5 {[%clk 0:02:58]}
7. O-O {[%clk 0:03:03.7]} 7... c5 {[%clk 0:02:57.3]} 8. a3 {[%clk 0:03:03.1]}
8... Nc6 {[%clk 0:02:56.6]} 9. Rb1 {[%clk 0:03:03.8]} 9... a5 {[%clk 0:02:56.5]}
10. d3 {[%clk 0:03:03.2]} 10... Ne8 {[%clk 0:02:53.3]} 11. Be3 {[%clk
0:02:59.8]} 11... f5 {[%clk 0:02:52.6]} 12. exf5 {[%clk 0:03:00.7]} 12... gxf5
{[%clk 0:02:51.7]} 13. f4 {[%clk 0:03:00.7]} 13... Nf6 {[%clk 0:02:47.4]} 14. h3
{[%clk 0:02:59.9]} 14... Nd4 {[%clk 0:02:41.4]} 15. b4 {[%clk 0:02:51.2]} 15...
axb4 {[%clk 0:02:40.3]} 16. axb4 {[%clk 0:02:52.1]} 16... Nxe2+ {[%clk
0:02:22.1]} 17. Qxe2 {[%clk 0:02:48.5]} 17... Nd7 {[%clk 0:02:14.4]} 18. Nd5
{[%clk 0:02:39.2]} 18... Re8 {[%clk 0:01:51.9]} 19. fxe5 {[%clk 0:02:27.6]}
19... Nxe5 {[%clk 0:01:29.2]} 20. bxc5 {[%clk 0:02:20.4]} 20... dxc5 {[%clk
0:01:28.3]} 21. Bxc5 {[%clk 0:02:16.4]} 21... Ng6 {[%clk 0:00:39.6]} 22. Qf2
{[%clk 0:02:05.5]} 22... Ne5 {[%clk 0:00:34.1]} 23. Rfd1 {[%clk 0:01:50.6]}
23... Qg5 {[%clk 0:00:34.1]} 24. Nc7 {[%clk 0:01:39.4]} 24... Bd7 {[%clk
0:00:23]} 25. Nxa8 {[%clk 0:01:35.9]} 25... Rxa8 {[%clk 0:00:23.9]} 26. Rxb7
{[%clk 0:01:35.9]} 26... Ba4 {[%clk 0:00:16.9]} 27. Rf1 {[%clk 0:01:07.2]} 27...
Nxd3 {[%clk 0:00:11.5]} 28. Qxf5 {[%clk 0:01:03.9]} 28... Qxf5 {[%clk
0:00:11.6]} 29. Rxf5 {[%clk 0:01:04.8]} 29... Nxc5 {[%clk 0:00:12.1]} 30. Rxg7+
{[%clk 0:01:05.5]} 30... Kxg7 {[%clk 0:00:10.4]} 31. Bxa8 {[%clk 0:01:06.4]}
31... Ne6 {[%clk 0:00:04.3]} 32. Bd5 {[%clk 0:01:02.3]} 32... Nd4 {[%clk
0:00:04.3]} 33. Rf7+ {[%clk 0:01:02.6]} 33... Kg6 {[%clk 0:00:04.8]} 34. Kf2
{[%clk 0:01:00.4]} 34... Bc2 {[%clk 0:00:02.8]} 35. h4 {[%clk 0:00:56.8]} 35...
h5 {[%clk 0:00:03.3]} 36. Rf4 {[%clk 0:00:54.3]} 36... Nf5 {[%clk 0:00:03]} 37.
Be4 {[%clk 0:00:52]} 37... Bxe4 {[%clk 0:00:01.6]} 38. Rxe4 {[%clk 0:00:52.9]}
38... Nd6 {[%clk 0:00:02.1]} 39. Re6+ {[%clk 0:00:53.2]} 39... Kf5 {[%clk
0:00:02.8]} 40. Rxd6 {[%clk 0:00:54.1]} 1-0

[Event "Late-Titled-Tuesday-Blitz-May-07-2024"]
[Site "Chess.com"]
[Date "2024.05.07"]
[Round "7"]
[White "HipsterChess22"]
[Black "1g60-1"]
[Result "0-1"]
[WhiteElo "2212"]
[BlackElo "2430"]
[TimeControl "180+1"]
[EndTime "15:16:17 PDT"]
[Termination "1g60-1 won on time"]

1. d4 {[%clk 0:03:00.6]} 1... e6 {[%clk 0:02:59.8]} 2. Nc3 {[%clk 0:02:59.8]}
2... d5 {[%clk 0:02:59.5]} 3. e4 {[%clk 0:02:59.4]} 3... Bb4 {[%clk 0:02:57.7]}
4. exd5 {[%clk 0:02:58.8]} 4... exd5 {[%clk 0:02:57.8]} 5. Bd3 {[%clk 0:02:59]}
5... Nc6 {[%clk 0:02:57.5]} 6. a3 {[%clk 0:02:55.2]} 6... Ba5 {[%clk 0:02:55.5]}
7. Ne2 {[%clk 0:02:43.3]} 7... Nf6 {[%clk 0:02:53]} 8. O-O {[%clk 0:02:42.4]}
8... h6 {[%clk 0:02:49.1]} 9. Be3 {[%clk 0:02:33.5]} 9... a6 {[%clk 0:02:46.6]}
10. h3 {[%clk 0:02:31.8]} 10... O-O {[%clk 0:02:46.3]} 11. b4 {[%clk 0:02:20.2]}
11... Bb6 {[%clk 0:02:44.3]} 12. Na4 {[%clk 0:02:17.8]} 12... Re8 {[%clk
0:02:38]} 13. Nxb6 {[%clk 0:02:16.2]} 13... cxb6 {[%clk 0:02:38.9]} 14. Ng3
{[%clk 0:02:06.3]} 14... Qd6 {[%clk 0:02:28.9]} 15. Qf3 {[%clk 0:02:03.3]} 15...
Ne7 {[%clk 0:02:14.9]} 16. Rfe1 {[%clk 0:02:01.1]} 16... Bd7 {[%clk 0:02:06.1]}
17. Bf4 {[%clk 0:01:59.1]} 17... Qc6 {[%clk 0:02:06.4]} 18. Re2 {[%clk
0:01:55.9]} 18... Ng6 {[%clk 0:02:04.8]} 19. Rxe8+ {[%clk 0:01:48.4]} 19... Rxe8
{[%clk 0:02:03.7]} 20. Be3 {[%clk 0:01:42.9]} 20... Qc3 {[%clk 0:01:38.7]} 21.
Qd1 {[%clk 0:01:34.1]} 21... Qc7 {[%clk 0:01:34]} 22. Qd2 {[%clk 0:01:31.9]}
22... Ne4 {[%clk 0:01:14.7]} 23. Nxe4 {[%clk 0:01:16.7]} 23... dxe4 {[%clk
0:01:15.6]} 24. Be2 {[%clk 0:01:14.8]} 24... f5 {[%clk 0:01:15.6]} 25. Bh5
{[%clk 0:01:08.8]} 25... Qd6 {[%clk 0:01:04.4]} 26. g3 {[%clk 0:00:45.5]} 26...
Rc8 {[%clk 0:00:56]} 27. Bxg6 {[%clk 0:00:41.1]} 27... Qxg6 {[%clk 0:00:56.1]}
28. d5 {[%clk 0:00:37.3]} 28... f4 {[%clk 0:00:54.2]} 29. Bxf4 {[%clk
0:00:35.7]} 29... Bxh3 {[%clk 0:00:54.8]} 30. d6 {[%clk 0:00:31.3]} 30... Bg4
{[%clk 0:00:53.7]} 31. d7 {[%clk 0:00:16.5]} 31... Rd8 {[%clk 0:00:53.9]} 32.
Qd5+ {[%clk 0:00:07.2]} 32... Kh7 {[%clk 0:00:52.8]} 33. Re1 {[%clk 0:00:05.1]}
33... Rxd7 {[%clk 0:00:50.3]} 34. Qxe4 {[%clk 0:00:03.6]} 34... Bf5 {[%clk
0:00:46]} 0-1

[Event "Late-Titled-Tuesday-Blitz-May-07-2024"]
[Site "Chess.com"]
[Date "2024.05.07"]
[Round "7"]
[White "RuperezA"]
[Black "GMKrikor"]
[Result "0-1"]
[WhiteElo "2657"]
[BlackElo "2844"]
[TimeControl "180+1"]
[EndTime "15:16:18 PDT"]
[Termination "GMKrikor won by resignation"]

1. e4 {[%clk 0:03:00.9]} 1... c5 {[%clk 0:02:59.1]} 2. Nf3 {[%clk 0:03:00.7]}
2... Nc6 {[%clk 0:02:59]} 3. Bb5 {[%clk 0:03:00.6]} 3... Nf6 {[%clk 0:02:58.9]}
4. d3 {[%clk 0:02:59.8]} 4... Qa5+ {[%clk 0:02:58]} 5. Nc3 {[%clk 0:02:59.3]}
5... Nd4 {[%clk 0:02:58.7]} 6. Bc4 {[%clk 0:02:56.3]} 6... b5 {[%clk 0:02:58.8]}
7. Bb3 {[%clk 0:02:57]} 7... Nxb3 {[%clk 0:02:58]} 8. cxb3 {[%clk 0:02:57.9]}
8... b4 {[%clk 0:02:57.5]} 9. Ne2 {[%clk 0:02:58.2]} 9... e6 {[%clk 0:02:58]}
10. O-O {[%clk 0:02:57.6]} 10... Be7 {[%clk 0:02:58.4]} 11. Ng3 {[%clk
0:02:57.4]} 11... O-O {[%clk 0:02:57.6]} 12. Re1 {[%clk 0:02:57.1]} 12... Ba6
{[%clk 0:02:51.7]} 13. Qc2 {[%clk 0:02:45.8]} 13... Qb5 {[%clk 0:02:49.7]} 14.
Qc4 {[%clk 0:02:40.6]} 14... Qb7 {[%clk 0:02:23.2]} 15. Qc2 {[%clk 0:02:39.4]}
15... d5 {[%clk 0:02:15.5]} 16. Bg5 {[%clk 0:02:37.8]} 16... h6 {[%clk 0:02:12]}
17. Be3 {[%clk 0:01:34.7]} 17... Rac8 {[%clk 0:02:04.1]} 18. Rad1 {[%clk
0:01:28.6]} 18... Rfd8 {[%clk 0:02:01.8]} 19. Qc1 {[%clk 0:01:25.9]} 19... Bf8
{[%clk 0:01:47.3]} 20. e5 {[%clk 0:01:21.2]} 20... Nd7 {[%clk 0:01:43]} 21. Qd2
{[%clk 0:00:56.5]} 21... c4 {[%clk 0:01:37.3]} 22. dxc4 {[%clk 0:00:53.7]} 22...
dxc4 {[%clk 0:01:37.2]} 23. bxc4 {[%clk 0:00:51.8]} 23... Bxc4 {[%clk
0:01:36.6]} 24. Qd4 {[%clk 0:00:43.5]} 24... Bd5 {[%clk 0:01:28.7]} 25. Qxa7
{[%clk 0:00:24]} 25... Qxa7 {[%clk 0:01:25.6]} 26. Bxa7 {[%clk 0:00:23.4]} 26...
Ra8 {[%clk 0:01:21.1]} 27. Bd4 {[%clk 0:00:23.9]} 27... Rxa2 {[%clk 0:01:18.6]}
28. Ra1 {[%clk 0:00:24]} 28... Rda8 {[%clk 0:01:16.5]} 29. Rxa2 {[%clk
0:00:23.8]} 29... Rxa2 {[%clk 0:01:17.4]} 30. Ne4 {[%clk 0:00:21.7]} 30... Nb8
{[%clk 0:01:04.4]} 31. Nd6 {[%clk 0:00:04]} 31... Nc6 {[%clk 0:00:59.3]} 32. Bc5
{[%clk 0:00:04.7]} 32... Rxb2 {[%clk 0:00:55.2]} 33. Nd4 {[%clk 0:00:05.6]}
33... Nxe5 {[%clk 0:00:43.8]} 34. h4 {[%clk 0:00:02.8]} 34... Nd3 {[%clk
0:00:43.9]} 0-1

[Event "Late-Titled-Tuesday-Blitz-May-07-2024"]
[Site "Chess.com"]
[Date "2024.05.07"]
[Round "7"]
[White "Onthequiet"]
[Black "Felix-Rose"]
[Result "1-0"]
[WhiteElo "2398"]
[BlackElo "2223"]
[TimeControl "180+1"]
[EndTime "15:16:19 PDT"]
[Termination "Onthequiet won by resignation"]

1. Nf3 {[%clk 0:03:00.5]} 1... d5 {[%clk 0:02:59.4]} 2. b3 {[%clk 0:02:59.8]}
2... Nf6 {[%clk 0:02:57.4]} 3. Bb2 {[%clk 0:03:00.2]} 3... g6 {[%clk 0:02:56.8]}
4. g3 {[%clk 0:02:59.5]} 4... Bg7 {[%clk 0:02:57]} 5. Bg2 {[%clk 0:02:59.9]}
5... c5 {[%clk 0:02:57.6]} 6. e3 {[%clk 0:02:59.2]} 6... Nc6 {[%clk 0:02:56.3]}
7. O-O {[%clk 0:02:59]} 7... O-O {[%clk 0:02:54.3]} 8. c4 {[%clk 0:02:53.8]}
8... d4 {[%clk 0:02:52.3]} 9. exd4 {[%clk 0:02:51.7]} 9... cxd4 {[%clk
0:02:51.7]} 10. d3 {[%clk 0:02:51]} 10... a5 {[%clk 0:02:47]} 11. a3 {[%clk
0:02:50.6]} 11... Bf5 {[%clk 0:02:45.1]} 12. Nh4 {[%clk 0:02:46.7]} 12... Bg4
{[%clk 0:02:44.7]} 13. Qc2 {[%clk 0:02:42.5]} 13... e5 {[%clk 0:02:41.6]} 14.
Nd2 {[%clk 0:02:40.7]} 14... Qd7 {[%clk 0:02:37.4]} 15. Rfe1 {[%clk 0:02:39.1]}
15... Rfe8 {[%clk 0:02:28.6]} 16. Nhf3 {[%clk 0:02:19.3]} 16... Bh3 {[%clk
0:02:20.7]} 17. Ng5 {[%clk 0:02:15.6]} 17... Bxg2 {[%clk 0:02:19.5]} 18. Kxg2
{[%clk 0:02:16.5]} 18... Qc7 {[%clk 0:02:09.9]} 19. Re2 {[%clk 0:01:48.4]} 19...
Nd7 {[%clk 0:02:08.2]} 20. Rae1 {[%clk 0:01:45.7]} 20... h6 {[%clk 0:02:04.2]}
21. Ngf3 {[%clk 0:01:44.8]} 21... Rf8 {[%clk 0:01:44.7]} 22. h4 {[%clk
0:01:40.6]} 22... f5 {[%clk 0:01:43]} 23. c5 {[%clk 0:01:32.6]} 23... Kh7 {[%clk
0:01:37.8]} 24. Qc4 {[%clk 0:01:22.6]} 24... Ne7 {[%clk 0:00:39.6]} 25. Nxd4
{[%clk 0:01:14.1]} 25... Qxc5 {[%clk 0:00:35.3]} 26. Ne6 {[%clk 0:01:10.2]}
26... Qxc4 {[%clk 0:00:33.8]} 27. Nxc4 {[%clk 0:01:09.2]} 27... Rfc8 {[%clk
0:00:29.9]} 28. Nxg7 {[%clk 0:01:05.8]} 28... Kxg7 {[%clk 0:00:26.3]} 29. Nxe5
{[%clk 0:01:06.2]} 29... Nxe5 {[%clk 0:00:24.5]} 30. Rxe5 {[%clk 0:01:07.1]}
30... Nc6 {[%clk 0:00:23.3]} 31. Re7+ {[%clk 0:01:05.3]} 31... Kf8 {[%clk
0:00:22.6]} 32. Rxb7 {[%clk 0:01:02.1]} 32... Nd8 {[%clk 0:00:20.7]} 33. Rh7
{[%clk 0:01:00.8]} 33... Rc2 {[%clk 0:00:19.8]} 34. Bf6 {[%clk 0:00:53.3]} 34...
Nf7 {[%clk 0:00:20.1]} 35. Re7 {[%clk 0:00:50.2]} 1-0

[Event "Late-Titled-Tuesday-Blitz-May-07-2024"]
[Site "Chess.com"]
[Date "2024.05.07"]
[Round "7"]
[White "egnfanclub"]
[Black "MikeSailer"]
[Result "1-0"]
[WhiteElo "2331"]
[BlackElo "2120"]
[TimeControl "180+1"]
[EndTime "15:16:21 PDT"]
[Termination "egnfanclub won on time"]

1. e4 {[%clk 0:03:00.9]} 1... d5 {[%clk 0:02:59.7]} 2. exd5 {[%clk 0:03:00.7]}
2... Qxd5 {[%clk 0:02:59.6]} 3. Nc3 {[%clk 0:03:00.6]} 3... Qd6 {[%clk
0:03:00.2]} 4. g3 {[%clk 0:02:58.6]} 4... c6 {[%clk 0:03:00]} 5. Bg2 {[%clk
0:02:58.8]} 5... Nf6 {[%clk 0:03:00.3]} 6. d4 {[%clk 0:02:59]} 6... Bg4 {[%clk
0:03:00.2]} 7. Nge2 {[%clk 0:02:53.3]} 7... e6 {[%clk 0:03:00.3]} 8. O-O {[%clk
0:02:52.3]} 8... Qc7 {[%clk 0:02:57.5]} 9. h3 {[%clk 0:02:51.7]} 9... Bh5 {[%clk
0:02:57.6]} 10. Bf4 {[%clk 0:02:48]} 10... Bd6 {[%clk 0:02:56.5]} 11. Qd2 {[%clk
0:02:48.2]} 11... Bxf4 {[%clk 0:02:55.8]} 12. Nxf4 {[%clk 0:02:49.1]} 12... Bg6
{[%clk 0:02:56.2]} 13. Rfe1 {[%clk 0:02:43.4]} 13... Nbd7 {[%clk 0:02:55.5]} 14.
d5 {[%clk 0:02:38]} 14... cxd5 {[%clk 0:02:54]} 15. Nfxd5 {[%clk 0:02:38]} 15...
Nxd5 {[%clk 0:02:50.1]} 16. Nxd5 {[%clk 0:02:37.6]} 16... Qd8 {[%clk 0:02:33]}
17. Qb4 {[%clk 0:02:18.3]} 17... Nb6 {[%clk 0:02:04.4]} 18. Qb5+ {[%clk
0:02:06.5]} 18... Kf8 {[%clk 0:01:31.7]} 19. Nxb6 {[%clk 0:02:03.9]} 19... Qxb6
{[%clk 0:01:27.8]} 20. Qxb6 {[%clk 0:02:03.3]} 20... axb6 {[%clk 0:01:27.9]} 21.
Bxb7 {[%clk 0:01:51.4]} 21... Rd8 {[%clk 0:01:21.8]} 22. Rad1 {[%clk 0:01:42.2]}
22... Ke7 {[%clk 0:01:21]} 23. c3 {[%clk 0:01:33.8]} 23... Bc2 {[%clk
0:01:06.8]} 24. Rxd8 {[%clk 0:01:31]} 24... Rxd8 {[%clk 0:01:06.3]} 25. Be4
{[%clk 0:01:28.6]} 25... Rd2 {[%clk 0:00:59.9]} 26. Bf3 {[%clk 0:00:58.8]} 26...
Bg6 {[%clk 0:00:42.7]} 27. Re2 {[%clk 0:00:58.1]} 27... Rd1+ {[%clk 0:00:38.6]}
28. Kg2 {[%clk 0:00:58.1]} 28... Rb1 {[%clk 0:00:33]} 29. Rd2 {[%clk 0:00:53.3]}
29... f6 {[%clk 0:00:23.8]} 30. a4 {[%clk 0:00:52.8]} 30... Be8 {[%clk
0:00:23.5]} 31. Be4 {[%clk 0:00:40]} 31... f5 {[%clk 0:00:20.3]} 32. Bxb1 {[%clk
0:00:39.7]} 1-0

[Event "Late-Titled-Tuesday-Blitz-May-07-2024"]
[Site "Chess.com"]
[Date "2024.05.07"]
[Round "7"]
[White "N_Mullodzhanov"]
[Black "carlsenCamacho"]
[Result "1-0"]
[WhiteElo "2559"]
[BlackElo "2330"]
[TimeControl "180+1"]
[EndTime "15:16:27 PDT"]
[Termination "N_Mullodzhanov won by checkmate"]

1. e4 {[%clk 0:03:00.9]} 1... e5 {[%clk 0:02:42.5]} 2. Nf3 {[%clk 0:03:00.7]}
2... Nc6 {[%clk 0:02:42.3]} 3. d4 {[%clk 0:03:00.8]} 3... exd4 {[%clk
0:02:42.3]} 4. Nxd4 {[%clk 0:03:01.7]} 4... Bc5 {[%clk 0:02:42.3]} 5. Be3 {[%clk
0:03:01.1]} 5... Qf6 {[%clk 0:02:41.5]} 6. c3 {[%clk 0:03:01.5]} 6... Nge7
{[%clk 0:02:40.5]} 7. Bc4 {[%clk 0:03:01.8]} 7... b6 {[%clk 0:02:39.3]} 8. O-O
{[%clk 0:03:01.3]} 8... O-O {[%clk 0:02:38.7]} 9. f4 {[%clk 0:02:59.5]} 9... Qh6
{[%clk 0:02:06.8]} 10. a3 {[%clk 0:02:51.2]} 10... d5 {[%clk 0:01:50.6]} 11.
exd5 {[%clk 0:02:42.7]} 11... Ne5 {[%clk 0:01:50.6]} 12. Be2 {[%clk 0:02:32.7]}
12... Nxd5 {[%clk 0:01:46.5]} 13. Bd2 {[%clk 0:02:24]} 13... Nc6 {[%clk
0:01:28.9]} 14. Bc1 {[%clk 0:02:00.8]} 14... Rd8 {[%clk 0:01:15.1]} 15. Bf3
{[%clk 0:01:54.8]} 15... Bb7 {[%clk 0:00:56.9]} 16. Kh1 {[%clk 0:01:46.8]} 16...
Nxd4 {[%clk 0:00:55.3]} 17. cxd4 {[%clk 0:01:46.6]} 17... Be7 {[%clk 0:00:26.7]}
18. Nc3 {[%clk 0:01:46.4]} 18... Nxc3 {[%clk 0:00:26.2]} 19. bxc3 {[%clk
0:01:46.6]} 19... Bxf3 {[%clk 0:00:24.2]} 20. Qxf3 {[%clk 0:01:47.5]} 20... c5
{[%clk 0:00:24.4]} 21. d5 {[%clk 0:01:34.1]} 21... c4 {[%clk 0:00:20.5]} 22. Be3
{[%clk 0:01:29.2]} 22... Qd6 {[%clk 0:00:19.8]} 23. Rfd1 {[%clk 0:01:23.9]}
23... Bf6 {[%clk 0:00:20.3]} 24. Bd4 {[%clk 0:01:17.5]} 24... Qxd5 {[%clk
0:00:18.1]} 25. Qxd5 {[%clk 0:01:04.3]} 25... Rxd5 {[%clk 0:00:19]} 26. Bxf6
{[%clk 0:01:04.8]} 26... Rxd1+ {[%clk 0:00:18.6]} 27. Rxd1 {[%clk 0:01:05.7]}
27... gxf6 {[%clk 0:00:18.7]} 28. Rd7 {[%clk 0:01:03.3]} 28... Re8 {[%clk
0:00:16.5]} 29. h3 {[%clk 0:01:03.8]} 29... Re3 {[%clk 0:00:16]} 30. Rxa7 {[%clk
0:01:00.6]} 30... Rxc3 {[%clk 0:00:16.6]} 31. a4 {[%clk 0:00:58.8]} 31... Rb3
{[%clk 0:00:16.5]} 32. Rb7 {[%clk 0:00:56.9]} 32... Rb4 {[%clk 0:00:16.1]} 33.
Kh2 {[%clk 0:00:53.8]} 33... Kg7 {[%clk 0:00:15.5]} 34. f5 {[%clk 0:00:52.5]}
34... Kh6 {[%clk 0:00:14.1]} 35. Rxf7 {[%clk 0:00:49.9]} 35... Kg5 {[%clk
0:00:14.7]} 36. g4 {[%clk 0:00:45.3]} 36... Rxa4 {[%clk 0:00:14.5]} 37. Rxh7
{[%clk 0:00:42.5]} 37... c3 {[%clk 0:00:14.6]} 38. Kg3 {[%clk 0:00:40.3]} 38...
Ra3 {[%clk 0:00:04.1]} 39. h4# {[%clk 0:00:39.9]} 1-0

[Event "Late-Titled-Tuesday-Blitz-May-07-2024"]
[Site "Chess.com"]
[Date "2024.05.07"]
[Round "7"]
[White "OriTaichman"]
[Black "AsaHoffmann"]
[Result "1-0"]
[WhiteElo "2611"]
[BlackElo "2414"]
[TimeControl "180+1"]
[EndTime "15:16:29 PDT"]
[Termination "OriTaichman won by resignation"]

1. e4 {[%clk 0:02:10.3]} 1... d6 {[%clk 0:02:59.1]} 2. d4 {[%clk 0:02:09.9]}
2... Nf6 {[%clk 0:02:58.7]} 3. Nc3 {[%clk 0:02:10.2]} 3... c6 {[%clk 0:02:58.7]}
4. Bg5 {[%clk 0:02:09.8]} 4... Nbd7 {[%clk 0:02:58.2]} 5. f4 {[%clk 0:02:09.9]}
5... b5 {[%clk 0:02:56.4]} 6. Bd3 {[%clk 0:02:06.9]} 6... e5 {[%clk 0:02:55.3]}
7. Nf3 {[%clk 0:01:57.6]} 7... Be7 {[%clk 0:02:54.5]} 8. Bxf6 {[%clk 0:01:38.1]}
8... Bxf6 {[%clk 0:02:53.3]} 9. dxe5 {[%clk 0:01:37.7]} 9... dxe5 {[%clk
0:02:52.5]} 10. f5 {[%clk 0:01:37.4]} 10... Qb6 {[%clk 0:02:49.6]} 11. Qd2
{[%clk 0:01:35.7]} 11... h6 {[%clk 0:02:48.1]} 12. g4 {[%clk 0:01:29.2]} 12...
Nc5 {[%clk 0:02:45.7]} 13. h4 {[%clk 0:01:28.6]} 13... Ba6 {[%clk 0:02:39.5]}
14. b4 {[%clk 0:00:55.7]} 14... Nxd3+ {[%clk 0:02:34.8]} 15. cxd3 {[%clk
0:00:49.1]} 15... O-O-O {[%clk 0:02:34.3]} 16. Ke2 {[%clk 0:00:47.9]} 16... Kb8
{[%clk 0:02:24.5]} 17. g5 {[%clk 0:00:47.5]} 17... hxg5 {[%clk 0:02:21.9]} 18.
hxg5 {[%clk 0:00:48.4]} 18... Rxh1 {[%clk 0:02:21]} 19. Rxh1 {[%clk 0:00:47.4]}
19... Be7 {[%clk 0:02:19.6]} 20. Nxe5 {[%clk 0:00:27]} 20... Bxb4 {[%clk
0:02:17.6]} 21. a3 {[%clk 0:00:13.9]} 21... Ba5 {[%clk 0:02:11.1]} 22. Nxf7
{[%clk 0:00:12.3]} 22... Re8 {[%clk 0:02:05.2]} 23. g6 {[%clk 0:00:11.5]} 23...
Qc7 {[%clk 0:02:03.5]} 24. Kf3 {[%clk 0:00:06.6]} 24... Bb7 {[%clk 0:01:57.7]}
25. Qc2 {[%clk 0:00:05.4]} 25... Qe7 {[%clk 0:01:53.5]} 26. Ne2 {[%clk
0:00:04.6]} 26... Bb6 {[%clk 0:01:51.1]} 27. Rh7 {[%clk 0:00:04]} 27... Qf6
{[%clk 0:01:43.2]} 28. Qc3 {[%clk 0:00:03.5]} 28... Qxc3 {[%clk 0:01:40.1]} 29.
Nxc3 {[%clk 0:00:04.4]} 29... Rg8 {[%clk 0:01:39.3]} 30. e5 {[%clk 0:00:03.3]}
30... a5 {[%clk 0:01:39]} 31. f6 {[%clk 0:00:03.4]} 31... b4 {[%clk 0:01:38.1]}
32. Ne4 {[%clk 0:00:03.3]} 32... c5 {[%clk 0:01:36.3]} 33. fxg7 {[%clk
0:00:03.7]} 33... Ka7 {[%clk 0:01:35.2]} 34. axb4 {[%clk 0:00:03.1]} 34... cxb4
{[%clk 0:01:34.8]} 35. Nh6 {[%clk 0:00:03.2]} 35... Re8 {[%clk 0:01:30.9]} 36.
g8=Q {[%clk 0:00:02.7]} 36... Rxg8 {[%clk 0:01:30.4]} 37. Nxg8 {[%clk
0:00:03.6]} 37... b3 {[%clk 0:01:27.1]} 38. Ke2 {[%clk 0:00:03.8]} 38... b2
{[%clk 0:01:27]} 39. Nd2 {[%clk 0:00:04]} 39... Bd4 {[%clk 0:01:26.6]} 40. e6
{[%clk 0:00:02.6]} 40... a4 {[%clk 0:01:24.1]} 41. e7 {[%clk 0:00:01.6]} 41...
Bc6 {[%clk 0:01:23.9]} 42. e8=Q+ {[%clk 0:00:02.5]} 42... Kb6 {[%clk 0:01:23.5]}
43. Qe6 {[%clk 0:00:02.9]} 43... a3 {[%clk 0:01:22.2]} 44. Nc4+ {[%clk
0:00:03.5]} 44... Kc5 {[%clk 0:01:21.9]} 45. Nxa3 {[%clk 0:00:04.4]} 45... b1=Q
{[%clk 0:01:20.3]} 46. Qe7+ {[%clk 0:00:04.7]} 46... Kb6 {[%clk 0:01:18.6]} 47.
Nxb1 {[%clk 0:00:05.6]} 47... Bc5 {[%clk 0:01:18.2]} 48. Qd8+ {[%clk 0:00:06]}
48... Kb5 {[%clk 0:01:18.1]} 49. Qb8+ {[%clk 0:00:06.3]} 49... Ka4 {[%clk
0:01:17.4]} 50. Ra7+ {[%clk 0:00:06.5]} 50... Bxa7 {[%clk 0:01:16.9]} 51. Qxa7+
{[%clk 0:00:07.4]} 51... Kb3 {[%clk 0:01:16.9]} 52. Nd2+ {[%clk 0:00:07.5]}
52... Kc3 {[%clk 0:01:16.7]} 53. Qc5+ {[%clk 0:00:07.9]} 53... Kb2 {[%clk
0:01:15.7]} 54. Qxc6 {[%clk 0:00:08.4]} 54... Ka2 {[%clk 0:01:14.8]} 55. Qb7
{[%clk 0:00:08.9]} 1-0